Cogmind - Beta 10.2 @@@ ROGUE MODE // 2021.01.20 @ 21:36:45 Player: cavemonk Result: Destroyed by Enhanced Grunt with Neutron Cannon Performance ------------- Evolutions (3) 1500 Regions Visited (12) 2400 Robots Destroyed (109) 545 Value Destroyed (2755) 2755 Prototype IDs (32) 640 Alien Tech Used (0) 0 Bonus (-2586) -2586 TOTAL SCORE: 5254 Bonus ------- High Alert Combat Kills 356 Follower Combat Kills 52 Aligned with FarCom 300 Met Data Miner 300 Friendly Fire -3594 Cogmind --------- Core Integrity 0/700 Matter 274/300 Energy 85/100 System Corruption 6% Temperature Cool (18) Movement Flying (200) Ox2 Location -7/Data Miner Parts ------- > --- POWER (1) -------- (None) > --- PROPULSION (4) --- Nuclear Pulse Array > --- UTILITY (6) ------ Large Storage Unit High-capacity Storage Unit Advanced Terrain Scan Processor Improved Salvage Targeting Computer Hacking Suite Hacking Suite > --- WEAPON (2) ------- Vibroblade > --- INVENTORY (18) --- Cooled Deuterium Engine Armored Huge Wheel Coolant Injector Compact Battery (300) Advanced Terrain Scanner Advanced Terrain Scanner Matter Filter Improved Phase Shifter Hardened Medium Armor Plating Improved Light Armor Plating Improved Field Recycling Unit (164) Heavy Rocket Launcher Heavy Rocket Launcher Power Sword Vibroblade Peak State ------------ > --- POWER ------------ Cooled Deuterium Engine > --- PROPULSION ------- Flying Fortress v7 > --- UTILITY ---------- Large Storage Unit High-capacity Storage Unit Advanced Terrain Scan Processor Improved Phase Shifter Hacking Suite Hacking Suite > --- WEAPON ----------- Power Sword Vibroblade > --- INVENTORY -------- Cooled Deuterium Engine Cooled Deuterium Engine Nuclear Pulse Array Coolant Injector Large Storage Unit Compact Battery Advanced Terrain Scanner Advanced Terrain Scanner Hacking Suite Improved Field Recycling Unit Coil Gun Coil Gun Heavy Rocket Launcher Heavy Rocket Launcher Heavy Rocket Launcher Vibroblade [Rating: 76] Favorites ----------- Power Cooled Deuterium Engine Engine Cooled Deuterium Engine Power Core Light Nuclear Core Propulsion Flying Fortress v7 Treads Light Treads Wheel Armored Huge Wheel Hover Unit Improved Hover Unit Flight Unit Flying Fortress v7 Utility Hacking Suite Device Advanced Terrain Scanner Storage Large Storage Unit Processor Advanced Terrain Scan Processor Hackware Hacking Suite Protection Improved Propulsion Shielding Weapon Power Sword Energy Gun Medium Laser Energy Cannon EM Pulse Cannon Ballistic Gun Coil Gun Ballistic Cannon Light Cannon Launcher Mini Grenade Launcher Impact Weapon Heavy Mace Slashing Weapon Power Sword Build | -11 -10 -9 -9 -9 -8 -8 -7 -7 -7 -7 -7 -7 ------- Run | Scr Mat Mat Min Exi Min Mat Fac Was Fac Low Low Dat Slots Evolved 6 | . . 2 . . . 2 2 . . . . . Power . | . . . . . . . . . . . . . Propulsion 2 | . . 2 . . . . . . . . . . Utility 4 | . . . . . . 2 2 . . . . . Weapon . | . . . . . . . . . . . . . Parts Attached 196 | 7 25 26 . 6 5 15 47 6 34 18 5 2 Power 11 | 1 1 2 . . . 2 4 . 1 . . . Engine 10 | 1 1 1 . . . 2 4 . 1 . . . Core 1 | . . 1 . . . . . . . . . . Reactor . | . . . . . . . . . . . . . Propulsion 46 | 2 17 10 . 1 . . 5 2 5 3 . 1 Treads 12 | 1 8 3 . . . . . . . . . . Leg . | . . . . . . . . . . . . . Wheel 14 | 1 9 . . . . . . . 2 2 . . Hover 9 | . . 7 . . . . . . 2 . . . Flight 11 | . . . . 1 . . 5 2 1 1 . 1 Utility 75 | 2 4 4 . 4 . 6 23 2 18 9 2 1 Device 23 | . . . . . . 3 5 1 10 3 1 . Storage 17 | 2 4 4 . 4 . 1 1 . 1 . . . Processor 6 | . . . . . . . 4 . . 1 . 1 Hackware 4 | . . . . . . . 2 1 1 . . . Protection 25 | . . . . . . 2 11 . 6 5 1 . Artifact . | . . . . . . . . . . . . . Weapon 64 | 2 3 10 . 1 5 7 15 2 10 6 3 . Energy Gun 4 | . 1 3 . . . . . . . . . . Energy Cannon 7 | . . . . . 2 3 2 . . . . . Ballistic Gun 17 | 2 . 4 . . 1 3 1 . 3 2 1 . Ballistic Cannon 4 | . 1 1 . . . . 2 . . . . . Launcher 12 | . . 2 . 1 2 1 1 . 1 3 1 . Special Weapon . | . . . . . . . . . . . . . Impact Weapon 2 | . 1 . . . . . 1 . . . . . Slashing Weapon 18 | . . . . . . . 8 2 6 1 1 . Piercing Weapon . | . . . . . . . . . . . . . Special Melee Weapon . | . . . . . . . . . . . . . Unidentified Prototypes 7 | . . . . . . . 6 1 . . . . Parts Lost 13 | . . 1 . . 1 1 2 . 3 2 . 3 Power 3 | . . . . . . . 1 . 1 . . 1 Propulsion 5 | . . . . . . . 1 . 1 1 . 2 Utility 1 | . . . . . . . . . 1 . . . Weapon 4 | . . 1 . . 1 1 . . . 1 . . Highest Loss Streak 3 | . . 1 . . 1 1 1 . 1 2 . 3 Average Slot Usage (%) 79 | . 100 98 100 74 52 70 75 75 78 83 83 74 Engine 8 | . 14 5 11 11 11 9 6 7 7 7 7 6 Treads 1 | . 16 4 . . . . . . . . . . Wheel 3 | . 11 . . . . . . . 1 14 15 13 Hover 3 | . . 38 44 13 . . . . 1 . . . Flight 4 | . . . . 7 11 9 6 6 6 . . . Device 4 | . . . . . . 14 4 7 4 2 . 1 Storage 17 | . 28 22 22 22 22 18 15 15 15 15 15 15 Processor 5 | . . . . . . . 8 7 7 7 7 12 Hackware 8 | . . . . . . . 8 14 15 15 15 15 Protection 3 | . . . . . . 2 5 . 2 4 6 . Energy Cannon 1 | . . . . . . 12 1 . . . . . Ballistic Gun 3 | . 23 10 . . . 5 . . 1 3 6 . Launcher 2 | . . 2 22 19 7 . . . . 6 . . Slashing Weapon 7 | . . . . . . . 11 15 13 3 6 7 Naked Turns . | . . . . . . . . . . . . . Heaviest Build 80 | 16 42 41 25 73 77 70 77 78 76 79 80 75 Greatest Support 72 | 20 40 32 32 72 72 72 72 72 72 56 56 56 Greatest Overweight (x) 22 | . 4 4 . 1 1 . 22 21 6 2 1 2 Average Overweight (x) . | . 2 . . . . . . . . 1 1 1 Largest Inventory Capacity 26 | 8 16 16 12 20 20 26 18 18 18 18 18 18 Average Capacity 17 | 5 12 12 12 15 20 18 18 18 18 18 18 18 Most Carried 20 | 6 16 16 12 19 20 19 18 18 18 18 18 18 Average Carried 16 | 3 11 12 12 13 19 17 17 17 17 17 18 17 Final Capacity 20 | 8 16 12 12 20 20 18 18 18 18 18 18 18 Final Carried 20 | 5 16 12 12 19 20 18 18 18 18 18 18 16 Class Distribution -------------------- 34% | Mutant 26% | Hacker-Mutant 18% | Scout 15% | Hacker-Scout Dominant Class ---------------- Mutant | -10/Materials Mutant | -9/Materials Mutant | -9/Mines Mutant | -9/Exiles Hauler-Mutant | -8/Mines Mutant | -8/Materials Scout | -7/Factory Hacker-Scout | -7/Waste Hacker-Scout | -7/Factory Hacker-Mutant | -7/Lower Caves Hacker-Mutant | -7/Lower Caves Hacker-Mutant | -7/Data Miner Resources | -11 -10 -9 -9 -9 -8 -8 -7 -7 -7 -7 -7 -7 ----------- Run | Scr Mat Mat Min Exi Min Mat Fac Was Fac Low Low Dat Matter Collected 3570 | 282 617 261 115 132 116 171 642 197 503 431 103 . Remotely . | . . . . . . . . . . . . . Salvage Created 4177 | 123 726 114 35 . 74 . 1221 508 727 422 227 . Parts 193 | 7 34 10 7 . 8 . 57 9 36 19 6 . Haulers Intercepted 5 | . 2 . . . . . 3 . . . . . Recyclers Shooed 10 | 1 3 . . . . . 3 . 3 . . . Parts Field Recycled 11 | . . . . . . . 6 1 . 1 3 . Retrieved Matter 381 | . . . . . . . 280 29 . 2 70 . Parts Self-Destructed 17 | . . . . . . . . . . 13 4 . Prevented . | . . . . . . . . . . . . . Kills | -11 -10 -9 -9 -9 -8 -8 -7 -7 -7 -7 -7 -7 ------- Run | Scr Mat Mat Min Exi Min Mat Fac Was Fac Low Low Dat Combat Hostiles Destroyed 69 | . 13 6 8 . 3 . 8 . 9 16 6 . Melee 14 | . . . . . . . 5 . 5 2 2 . Guns 18 | . 11 3 . . . . . . 1 3 . . Cannons 2 | . 2 . . . . . . . . . . . AOE 35 | . . 3 8 . 3 . 3 . 3 11 4 . Classes Destroyed 16 | 2 3 1 1 . . . 5 . . 2 2 . Worker 1 | . . . . . . . 1 . . . . . Builder 4 | . . . . . . . 3 . 1 . . . Tunneler 1 | 1 . . . . . . . . . . . . Hauler 5 | . 2 . . . . . 3 . . . . . Recycler 18 | 1 2 . . . 1 . 9 . 5 . . . Operator 3 | . . . . . . . 2 . 1 . . . Watcher 3 | . . . . . . . 2 . 1 . . . Swarmer 31 | . 3 4 6 . 3 . 3 . 3 9 . . Grunt 13 | . 10 . . . . . . . 1 . 2 . Brawler 2 | . . . . . . . . . . 1 1 . Duelist 4 | . . . . . . . . . . 3 1 . Sentry 7 | . . 2 . . . . . . 2 2 1 . Hunter 1 | . . . . . . . . . . . 1 . Programmer 9 | . . . . . . . 5 . 3 1 . . Tinkerer 1 | . . . . . . . . . . . 1 . Assembled 2 | . . . 2 . . . . . . . . . Wasp 7 | . . . . . . . . 7 . . . . Best Kill Streak 8 | 2 4 4 3 . 3 . 4 . 6 8 5 . Combat Bots Only 8 | . 4 4 3 . 3 . 3 . 3 8 5 . Max Kills in Single Turn 5 | 1 1 4 2 . 2 . 2 1 5 3 2 . Gunslinging . | . . . . . . . . . . . . . Exploded 3 | . . 3 2 . 2 . 1 . 2 3 2 . Melee 1 | . . . . . . . 1 . 1 1 1 . Uniques/NPCs Destroyed . | . . . . . . . . . . . . . Combat | -11 -10 -9 -9 -9 -8 -8 -7 -7 -7 -7 -7 -7 -------- Run | Scr Mat Mat Min Exi Min Mat Fac Was Fac Low Low Dat Damage Taken 5264 | . 502 231 159 . 102 409 832 . 1369 776 180 704 Core 892 | . 97 20 29 . 21 25 89 . 193 163 28 227 Absorbed by Shields . | . . . . . . . . . . . . . Core Remaining (%) 84 | 100 61 . . . 82 95 . . . . . . Volleys Fired 146 | 3 58 11 7 . 6 17 8 . 7 16 13 . Largest 2 | 2 2 2 2 . 1 1 1 . 2 2 1 . Hottest 106 | 40 55 106 60 . 63 75 39 . 60 60 39 . Shots Fired 219 | 6 101 22 14 . 6 17 7 . 11 22 13 . Gun 145 | 6 88 21 . . . 2 . . 8 12 8 . Cannon 30 | . 13 1 . . 1 15 . . . . . . Launcher 44 | . . . 14 . 5 . 7 . 3 10 5 . Special . | . . . . . . . . . . . . . Kinetic 148 | 6 101 11 . . . 2 . . 8 12 8 . Thermal 26 | . . 11 . . . 15 . . . . . . Explosive 44 | . . . 14 . 5 . 7 . 3 10 5 . Electromagnetic 1 | . . . . . 1 . . . . . . . Robot Hit Streak 20 | 5 20 10 . . 4 5 1 . 6 5 6 . Robot Miss Streak 3 | . 3 2 . . . . 1 . 1 2 2 . Penetration Max 2 | . . . . . . . . . 1 1 2 . Secondary Targets 1 | . . . . . . . . . . 1 . . Max Gunslinging Chain 1 | . . . . . . . . . . 1 . . Shots Hit Robots 234 | 5 66 14 . . 2 1 70 18 28 16 13 1 Core Hits 159 | 4 29 8 12 . 4 1 29 9 23 25 15 . Critical Hits 6 | . 1 . . . . . 3 . 2 . . . Critical Kills 4 | . 1 . . . . . 1 . 2 . . . Critical Parts Destroyed 2 | . . . . . . . 2 . . . . . Melee Attacks 206 | . 1 . . . . . 127 19 45 4 4 6 Impact 23 | . 1 . . . . . 22 . . . . . Slashing 183 | . . . . . . . 105 19 45 4 4 6 Piercing . | . . . . . . . . . . . . . Sneak Attacks 44 | . 1 . . . . . 24 11 4 1 2 1 Combat Hostiles 1 | . . . . . . . 1 . . . . . Follow-up Attacks 13 | . . . . . . . 7 3 3 . . . Damage Inflicted 14258 | 64 789 430 621 . 289 3 5077 1935 2025 1694 1220 111 Guns 1469 | 64 587 149 . . . . . . 216 265 188 . Cannons 113 | . 87 . . . 26 . . . . . . . Explosions 3987 | . . 281 621 . 263 . 452 . 558 1149 663 . Melee 8676 | . 105 . . . . . 4625 1935 1251 280 369 111 Ramming 13 | . 10 . . . . 3 . . . . . . Kinetic 1504 | 64 674 97 . . . . . . 216 265 188 . Thermal 333 | . . 333 . . . . . . . . . . Explosive 3706 | . . . 621 . 263 . 452 . 558 1149 663 . Electromagnetic 26 | . . . . . 26 . . . . . . . Impact 670 | . 105 . . . . . 565 . . . . . Slashing 8006 | . . . . . . . 4060 1935 1251 280 369 111 Piercing . | . . . . . . . . . . . . . Highest Corruption 6 | . 1 . . . . . 6 6 6 6 6 6 Average Corruption 5 | . 1 . . . . . 4 6 6 6 6 6 Corruption Purged . | . . . . . . . . . . . . . Effects 132 | . 2 . . . . . 47 5 37 20 20 1 Message Errors 27 | . . . . . . . 7 1 9 6 4 . Matter Fused 33 | . . . . . . . 15 . 10 3 5 . Heat Flow Errors 15 | . . . . . . . 5 2 3 1 4 . Energy Discharges 18 | . 1 . . . . . 8 2 3 2 2 . Parts Rejected 1 | . . . . . . . . . 1 . . . Data Loss (minor) 19 | . . . . . . . 6 . 5 4 4 . Data Loss (major) 8 | . . . . . . . 1 . 3 3 . 1 Targeting Errors 10 | . 1 . . . . . 4 . 3 1 1 . Weapon Failures 1 | . . . . . . . 1 . . . . . Overload Shots . | . . . . . . . . . . . . . Overflow Damage 2116 | . 45 35 36 . . . 1208 438 190 82 82 . Projectiles . | . . . . . . . . . . . . . Explosions 330 | . . 35 36 . . . 38 . 59 80 82 . Melee 1786 | . 45 . . . . . 1170 438 131 2 . . Knockbacks 1 | . . . . . . . 1 . . . . . Impact 1 | . . . . . . . 1 . . . . . Kinetic . | . . . . . . . . . . . . . Secondary . | . . . . . . . . . . . . . Self-Inflicted Damage 373 | . 7 34 144 . 48 1 . . . 139 . . Shots 11 | . . 1 5 . 1 . . . . 4 . . Rammed 2 | . 1 . . . . 1 . . . . . . Targets Rammed 2 | . 1 . . . . 1 . . . . . . Kicked . | . . . . . . . . . . . . . Crushed . | . . . . . . . . . . . . . Highest Temperature 233 | . 22 99 16 . 32 31 233 212 223 177 219 . Average Temperature 51 | . 9 32 7 . 13 13 83 100 97 90 84 . Received Heat Transfer 1047 | . 234 45 . . 27 153 54 . 381 9 54 90 Siege Activations . | . . . . . . . . . . . . . Robots Corrupted . | . . . . . . . . . . . . . Combat Hostiles . | . . . . . . . . . . . . . Parts Fried 1 | . 1 . . . . . . . . . . . Impact Corruptions 7 | . 1 . . . . . 6 . . . . . Robots Melted . | . . . . . . . . . . . . . Combat Hostiles . | . . . . . . . . . . . . . Parts Melted 2 | . . . . . . . 2 . . . . . Heat Transferred 398 | . . 398 . . . . . . . . . . Parts Sabotaged . | . . . . . . . . . . . . . Parts Stolen . | . . . . . . . . . . . . . Parts Stripped . | . . . . . . . . . . . . . Power Chain Reactions . | . . . . . . . . . . . . . Missiles Intercepted . | . . . . . . . . . . . . . Alert | -11 -10 -9 -9 -9 -8 -8 -7 -7 -7 -7 -7 -7 ------- Run | Scr Mat Mat Min Exi Min Mat Fac Was Fac Low Low Dat Peak Influence 785 | 10 304 347 264 . 176 442 280 88 785 . . . Initial 200 | . 6 126 76 . . 68 200 88 61 . . . Average 196 | 5 176 234 170 . 123 138 130 88 416 . . . Maximum Alert Level 3 | . 1 1 1 . . 2 1 . 3 . . . Low Security (%) 68 | 100 57 49 74 . 100 79 75 100 40 . . . Level 1 21 | . 42 50 25 . . 14 24 . 11 . . . Level 2 6 | . . . . . . 6 . . 27 . . . Level 3 4 | . . . . . . . . . 20 . . . Level 4 . | . . . . . . . . . . . . . Level 5 . | . . . . . . . . . . . . . High Security . | . . . . . . . . . . . . . Max Security . | . . . . . . . . . . . . . Squads Dispatched 23 | . 2 . . . . 2 9 . 10 . . . Investigation 9 | . 1 . . . . 1 3 . 4 . . . Extermination 7 | . . . . . . . 4 . 3 . . . Reinforcement 5 | . 1 . . . . . 2 . 2 . . . Assault 2 | . . . . . . 1 . . 1 . . . Garrison . | . . . . . . . . . . . . . Intercept . | . . . . . . . . . . . . . Construction Impeded 1 | . . . . . . . . . 1 . . . Haulers Reinforced 2 | . . . . . . . 1 . 1 . . . Stealth | -11 -10 -9 -9 -9 -8 -8 -7 -7 -7 -7 -7 -7 --------- Run | Scr Mat Mat Min Exi Min Mat Fac Was Fac Low Low Dat Distress Signals 5 | . 1 1 . . . 1 1 . 1 . . . Communications Jammed . | . . . . . . . . . . . . . Distress Signals . | . . . . . . . . . . . . . Times Spotted 154 | . 31 8 7 . 6 22 25 . 30 15 6 4 Peak Tracking Total 9 | . 5 7 3 . 6 6 3 . 9 7 5 4 Tactical Retreats 25 | . 5 . 1 . 1 8 5 . 3 2 . . Traps | -11 -10 -9 -9 -9 -8 -8 -7 -7 -7 -7 -7 -7 ------- Run | Scr Mat Mat Min Exi Min Mat Fac Was Fac Low Low Dat Traps Triggered 6 | . 1 . . . . . 3 . 2 . . . Indirectly . | . . . . . . . . . . . . . Trap Hack Attempts . | . . . . . . . . . . . . . Triggered . | . . . . . . . . . . . . . Disarmed . | . . . . . . . . . . . . . Reprogrammed . | . . . . . . . . . . . . . Reused . | . . . . . . . . . . . . . Traps Extracted . | . . . . . . . . . . . . . Installed . | . . . . . . . . . . . . . Triggered . | . . . . . . . . . . . . . Machines | -11 -10 -9 -9 -9 -8 -8 -7 -7 -7 -7 -7 -7 ---------- Run | Scr Mat Mat Min Exi Min Mat Fac Was Fac Low Low Dat Machines Disabled 8 | . . 2 . . . 1 2 . 1 1 . 1 Max in Single Turn 2 | . . 2 . . . 1 1 . 1 1 . 1 Garrison Access 2 | . . . . . . 1 . . 1 . . . Machines Sabotaged . | . . . . . . . . . . . . . Garrisons Compromised . | . . . . . . . . . . . . . Overloaded Fab Kills . | . . . . . . . . . . . . . Fab Network Shutdowns 1 | . . . . . . . . . 1 . . . Hacking | -11 -10 -9 -9 -9 -8 -8 -7 -7 -7 -7 -7 -7 --------- Run | Scr Mat Mat Min Exi Min Mat Fac Was Fac Low Low Dat Machines Accessed 57 | . 5 2 . 1 . 7 23 . 18 . 1 . Terminals 28 | . 3 2 . . . 3 12 . 8 . . . Fabricators 6 | . . . . . . . 4 . 2 . . . Repair Stations 7 | . . . . . . . 4 . 3 . . . Recycling Units 4 | . 2 . . . . 1 1 . . . . . Scanalyzers 6 | . . . . . . 2 1 . 3 . . . Garrison Access 4 | . . . . . . 1 1 . 2 . . . Total Hacks 186 | . 12 8 . 1 . 40 53 . 71 . 1 . Successful 108 | . 6 2 . 1 . 27 27 . 44 . 1 . Failed 78 | . 6 6 . . . 13 26 . 27 . . . Catastrophic 16 | . . 1 . . . 2 11 . 2 . . . Database Lockouts . | . . . . . . . . . . . . . Manual 54 | . 8 3 . 1 . 8 15 . 19 . . . Terminals 75 | . 9 8 . . . 8 24 . 26 . . . Fabricators 22 | . . . . . . . 12 . 10 . . . Repair Stations 24 | . . . . . . . 11 . 13 . . . Recycling Units 6 | . 3 . . . . 1 2 . . . . . Scanalyzers 48 | . . . . . . 28 2 . 18 . . . Garrison Access 9 | . . . . . . 3 2 . 4 . . . Terminal Hacks 23 | . 4 2 . 1 . 1 5 . 9 . 1 . Part Schematic 6 | . . . . . . 1 2 . 3 . . . Prototype ID Bank 1 | . . . . . . . . . 1 . . . Open Door 1 | . . . . . . . . . . . 1 . Branch Access Points 1 | . . . . . . . . . 1 . . . Terminal Index 4 | . 1 1 . . . . 1 . 1 . . . Fabricator Index 1 | . . . . . . . . . 1 . . . Repair Station Index 1 | . . . . . . . . . 1 . . . Scanalyzer Index 1 | . . . . . . . . . 1 . . . Unreport Threat 1 | . . 1 . . . . . . . . . . Transport Status 1 | . 1 . . . . . . . . . . . Hauler Manifests 2 | . 1 . . . . . 1 . . . . . Zone Layout 2 | . 1 . . . . . 1 . . . . . EX-Prototype ID Bank 1 | . . . . 1 . . . . . . . . Fabricator Hacks 12 | . . . . . . . 7 . 5 . . . Load Schematic 5 | . . . . . . . 3 . 2 . . . Build 7 | . . . . . . . 4 . 3 . . . Repair Station Hacks 17 | . . . . . . . 8 . 9 . . . Scan Component 9 | . . . . . . . 4 . 5 . . . Repair 8 | . . . . . . . 4 . 4 . . . Recycling Unit Hacks 4 | . 2 . . . . 1 1 . . . . . Retrieve Components 4 | . 2 . . . . 1 1 . . . . . Scanalyzer 42 | . . . . . . 25 2 . 15 . . . Insert Component 21 | . . . . . . 12 1 . 8 . . . Analyze 21 | . . . . . . 13 1 . 7 . . . Garrison Access Hacks 1 | . . . . . . . . . 1 . . . Seal Access 1 | . . . . . . . . . 1 . . . Unauthorized Hacks 9 | . . . . . . . 4 . 5 . . . Terminals 5 | . . . . . . . 2 . 3 . . . Assimilate 1 | . . . . . . . 1 . . . . . Botnet 4 | . . . . . . . 1 . 3 . . . Fabricators 4 | . . . . . . . 2 . 2 . . . Prioritize 2 | . . . . . . . 1 . 1 . . . Siphon 2 | . . . . . . . 1 . 1 . . . Repair Stations . | . . . . . . . . . . . . . Recycling Units . | . . . . . . . . . . . . . Scanalyzers . | . . . . . . . . . . . . . Garrison Access . | . . . . . . . . . . . . . Data Cores Recovered 1 | . . . . . . . . . 1 . . . Used . | . . . . . . . . . . . . . Hacking Detections 49 | . 4 2 . . . 6 21 . 16 . . . Full Trace Events 8 | . . . . . . 1 3 . 4 . . . Feedback Events 1 | . . . . . . . 1 . . . . . Corruption 1 | . . . . . . . 1 . . . . . Feedback Blocked . | . . . . . . . . . . . . . Robot Schematics Acquired . | . . . . . . . . . . . . . Robots Built . | . . . . . . . . . . . . . Matter . | . . . . . . . . . . . . . Time . | . . . . . . . . . . . . . Total Robot Build Rating . | . . . . . . . . . . . . . Part Schematics Acquired 26 | . . . . . . 13 3 . 10 . . . Parts Built 9 | . . . . . . . 8 . 1 . . . Matter 1067 | . . . . . . . 716 . 351 . . . Time 433 | . . . . . . . 246 . 187 . . . Total Part Build Rating 43 | . . . . . . . 36 . 7 . . . Parts Repaired 8 | . . . . . . . 4 . 4 . . . Time 372 | . . . . . . . 214 . 158 . . . Parts Recycled . | . . . . . . . . . . . . . Recycled Matter . | . . . . . . . . . . . . . Retrieved Matter . | . . . . . . . . . . . . . Retrieved Components 22 | . 10 . . . . 2 10 . . . . . Parts Scanalyzed 20 | . . . . . . 12 1 . 7 . . . Part Schematics Acquired 20 | . . . . . . 12 1 . 7 . . . Parts Damaged 2 | . . . . . . 1 . . 1 . . . Bothacking | -11 -10 -9 -9 -9 -8 -8 -7 -7 -7 -7 -7 -7 ------------ Run | Scr Mat Mat Min Exi Min Mat Fac Was Fac Low Low Dat Used RIF Installer . | . . . . . . . . . . . . . Robots Hacked . | . . . . . . . . . . . . . Non-combat . | . . . . . . . . . . . . . Combat . | . . . . . . . . . . . . . Robot Hacks Applied . | . . . . . . . . . . . . . Relay Couplers Released 2 | . . . . . . 2 . . . . . . Machine Destruction 2 | . . . . . . 2 . . . . . . Robots Rewired . | . . . . . . . . . . . . . Allies Hacked . | . . . . . . . . . . . . . Hacks Repelled . | . . . . . . . . . . . . . Allies | -11 -10 -9 -9 -9 -8 -8 -7 -7 -7 -7 -7 -7 -------- Run | Scr Mat Mat Min Exi Min Mat Fac Was Fac Low Low Dat Total Allies 22 | . . . 1 . . . 1 20 . . . . Largest Group 20 | . . . 1 . . . 1 20 . . . . Highest-Rated Group 521 | . . . 31 . . . 10 521 . . . . Highest-Rated Ally 35 | . . . 31 . . . 10 35 . . . . Total Orders . | . . . . . . . . . . . . . Ally Attacks 8 | . . . 8 . . . . . . . . . Total Damage 87 | . . . 87 . . . . . . . . . Kills 2 | . . . 2 . . . . . . . . . Allies Corrupted . | . . . . . . . . . . . . . Allies Melted . | . . . . . . . . . . . . . Intel | -11 -10 -9 -9 -9 -8 -8 -7 -7 -7 -7 -7 -7 ------- Run | Scr Mat Mat Min Exi Min Mat Fac Was Fac Low Low Dat Robot Analysis Total . | . . . . . . . . . . . . . Derelict Logs Recovered 7 | . . . 3 . . . . . . 3 1 . Drone Launches . | . . . . . . . . . . . . . Drone Recoveries . | . . . . . . . . . . . . . Exploration | -11 -10 -9 -9 -9 -8 -8 -7 -7 -7 -7 -7 -7 ------------- Run | Scr Mat Mat Min Exi Min Mat Fac Was Fac Low Low Dat Turns Passed 8020 | 97 754 196 294 189 195 710 2626 360 1369 602 523 105 Spaces Moved 8231 | 55 484 159 391 349 340 816 2558 423 1694 458 425 79 Core 17 | 14 . . . . . . 2 1 . . . . Treads 65 | 41 22 2 . . . . . . . . . . Legs . | . . . . . . . . . . . . . Wheels 1533 | . 462 6 . . . . . . 104 458 425 78 Hover 705 | . . 151 391 120 . . . . 43 . . . Flight 5911 | . . . . 229 340 816 2556 422 1547 . . 1 Fastest Speed 48 | 50 90 48 48 48 50 50 50 50 50 110 110 110 Average Speed 63 | 132 106 52 48 49 50 50 51 53 59 110 110 111 Slowest Speed 1150 | 160 180 180 48 150 150 50 1150 1100 420 120 110 200 Overloaded Moves . | . . . . . . . . . . . . . Propulsion Burnouts . | . . . . . . . . . . . . . Robots Hopped 18 | . . . . . . 8 8 1 . . 1 . Cave-ins Triggered . | . . . . . . . . . . . . . Exploration Rate (%) 58 | 6 82 20 76 78 85 36 62 88 36 66 56 64 Regions Visited 12 Branch Regions 6 Pre-discovered Areas 1 | . . . 1 . . . . . . . . . Known Exits Taken 1 | . . . . . . . . . 1 . . . Unknown Exits Taken 9 | 1 1 1 1 1 1 1 . . . 1 1 . Scrap Searched 10 | . . . 1 . 1 . . . . 8 . . Spaces Dug 188 | . . . 58 . 40 14 54 . 12 9 . 1 Terrain Destroyed 500 | . . 48 126 . 61 14 92 . 27 108 23 1 Melee 41 | . . . . . . . 28 . 12 . . 1 Projectile 14 | . . . . . . 14 . . . . . . AOE 445 | . . 48 126 . 61 . 64 . 15 108 23 . Terrain Rammed 1 | . 1 . . . . . . . . . . . Walls Destroyed . | . . . . . . . . . . . . . Machines Disabled . | . . . . . . . . . . . . . Actions | -11 -10 -9 -9 -9 -8 -8 -7 -7 -7 -7 -7 -7 --------- Run | Scr Mat Mat Min Exi Min Mat Fac Was Fac Low Low Dat Total 10511 | 72 625 249 483 363 357 1083 3686 533 1989 525 458 88 Wait 1542 | . 24 31 84 . . 220 889 79 186 17 12 . Move 8184 | 54 483 158 390 348 339 799 2542 420 1693 457 422 79 Hop 18 | . . . . . . 8 8 1 . . 1 . Pick Up 110 | 8 19 8 1 4 3 12 33 4 13 5 . . Fast Attach 56 | 4 1 3 . 1 . 1 27 3 11 4 1 . Attach 42 | 3 2 8 . . 2 7 9 . 7 3 . 1 Detach 10 | . . 3 . 1 2 . 2 . 2 . . . Swap 99 | . 22 15 . 5 3 7 12 3 16 11 4 1 Drop 129 | . 13 12 1 4 2 11 50 8 18 8 1 1 Fire 146 | 3 58 11 7 . 6 17 8 . 7 16 13 . Melee 172 | . 1 . . . . . 106 15 36 4 4 6 Ram 2 | . 1 . . . . 1 . . . . . . Kick . | . . . . . . . . . . . . . Crush 1 | . 1 . . . . . . . . . . . Escape Stasis . | . . . . . . . . . . . . . Rewire . | . . . . . . . . . . . . . Trap . | . . . . . . . . . . . . . Miscellaneous . | . . . . . . . . . . . . . Route ------- -11/Scrapyard -10/Materials (discovered 3 exits: *Mat x2 / [*Min]) -9/Materials -9/Mines -9/Exiles -8/Mines -8/Materials (discovered 3 exits: *Fac x2 / Sto) -7/Factory (discovered 4 exits: [*Fac x2] / *Low x2) -7/Waste -7/Factory (discovered 3 exits: [*Fac] / *Low x2) -7/Lower Caves -7/Lower Caves -7/Data Miner (discovered 1 exit: [*Pro]) History --------- Turn | Location | Event 4 | -11/Scrapyard | Discovered new exit (range 15) 98 | -11/Scrapyard | Entered Materials 194 | -10/Materials | Discovered new exit (range 15) 311 | -10/Materials | Build established: Mutant 502 | -10/Materials | Discovered new exit (range 11) 811 | -10/Materials | Discovered new exit (range 16) 852 | -10/Materials | Entered another Materials area 852 | -9/Materials | Evolved 2 slots: Propulsion x2 993 | -9/Materials | Discovered new exit (range 13) 1048 | -9/Materials | Entered Mines 1051 | -9/Mines | Received a Mining Laser from a helpful Derelict 1070 | -9/Mines | Found a hidden stash of uninstalled traps 1168 | -9/Mines | Learned location of Zion (-6) 1177 | -9/Mines | Assembled infested the area 1289 | -9/Mines | Learned Materials terminal intel 1340 | -9/Mines | Discovered new exit (range 5) 1342 | -9/Mines | Entered Exiles 1354 | -9/Exiles | Met 8R-AWN 1362 | -9/Exiles | Met EX-HEX 1376 | -9/Exiles | Met EX-BIN 1382 | -9/Exiles | Aligned with FarCom system 1382 | -9/Exiles | Given EX-Vault access code 1396 | -9/Exiles | Opened EX-Vault 1402 | -9/Exiles | Found Flying Fortress v7 1417 | -9/Exiles | Warned to stay clear of 0b10 Research branches 1431 | -9/Exiles | Met EX-DEC 1448 | -9/Exiles | Visited The Gauntlet 1526 | -9/Exiles | Discovered new exit (range 10) 1531 | -9/Exiles | Left Exiles lab with Flying Fortress v7 1531 | -9/Exiles | Entered Mines 1721 | -8/Mines | Discovered new exit (range 12) 1726 | -8/Mines | Entered Materials 1726 | -8/Materials | Evolved 2 slots: Utility x2 1727 | -8/Materials | Identified exit to Storage 1728 | -8/Materials | Loaded intel: 12 terminal locations 1903 | -8/Materials | Discovered new exit (range 15) 2427 | -8/Materials | Discovered new exit (range 14) 2436 | -8/Materials | Entered Factory 2436 | -7/Factory | Evolved 2 slots: Utility x2 2739 | -7/Factory | Build established: Hacker-Mutant 2911 | -7/Factory | Fabricated Power Sword (x2) 2986 | -7/Factory | Discovered new exit (range 8) 3018 | -7/Factory | Fabricated Coil Gun? 3181 | -7/Factory | Discovered new exit (range 11) 3295 | -7/Factory | Repaired Imp. Medium Armor Plating 3301 | -7/Factory | Build established: Mutant 3526 | -7/Factory | Fabricated Adv. Terrain Scanner (x2) 3829 | -7/Factory | Build established: Scout 4008 | -7/Factory | Fabricated Power Sword (x2) 4060 | -7/Factory | Discovered new exit (range 16) 4093 | -7/Factory | Discovered new exit (range 8) 4589 | -7/Factory | Repaired Cld. Deuterium Engine 4686 | -7/Factory | Repaired Power Sword 4907 | -7/Factory | Repaired Power Sword 5062 | -7/Factory | Sucked down chute 5062 | -7/Factory | Entered Waste 5063 | -7/Waste | Joined by Warlord forces that had cleared the area 5183 | -7/Waste | Found Prototype Slashing Weapon 5183 | -7/Waste | Identified Vibroblade 5226 | -7/Waste | Discovered new exit (range 13) 5319 | -7/Waste | Build established: Hacker-Scout 5422 | -7/Waste | Entered Factory 5478 | -7/Factory | Identified exit to Lower Caves 5539 | -7/Factory | Repaired Broken Imp. Phase Shifter 6068 | -7/Factory | Fabricated Vibroblade? 6135 | -7/Factory | Local fabrication network quarantined 6276 | -7/Factory | Repaired Vibroblade 6337 | -7/Factory | Repaired Broken Coil Gun? 6420 | -7/Factory | Repaired Imp. Phase Shifter? 6622 | -7/Factory | First assault squad dispatched 6755 | -7/Factory | Discovered new exit (range 11) 6791 | -7/Factory | Entered Lower Caves 6898 | -7/Lower Caves | Attracted the attention of an 0b10 outpost 6916 | -7/Lower Caves | Core integrity fell below 50% 6923 | -7/Lower Caves | Build established: Hacker-Mutant 6956 | -7/Lower Caves | Destroyed 8 combat bots 6973 | -7/Lower Caves | Learned Factory stockpile data 6980 | -7/Lower Caves | A Derelict revealed a hidden shortcut to a safe place 7038 | -7/Lower Caves | Spotted B-75 Beast 7143 | -7/Lower Caves | Learned Factory emergency access door positions 7301 | -7/Lower Caves | Learned location of 1 exit from Factory 7378 | -7/Lower Caves | Discovered new exit (range 13) 7393 | -7/Lower Caves | Entered another Lower Caves area 7500 | -7/Lower Caves | Spotted B-75 Beast 7561 | -7/Lower Caves | Learned Factory emergency access door positions 7760 | -7/Lower Caves | Attracted the attention of an 0b10 checkpoint 7861 | -7/Lower Caves | Discovered new exit (range 4) 7916 | -7/Lower Caves | Entered Data Miner 7917 | -7/Data Miner | Discovered new exit (range 6) 7938 | -7/Data Miner | Met Data Miner 7989 | -7/Data Miner | Data Conduit disabled 8016 | -7/Data Miner | Core integrity fell below 20% 8021 | -7/Data Miner | Destroyed by Enhanced Grunt with Neutron Cannon Last Messages --------------- 07899_ System corrupted: Component data lost. 07901_ Imp. Field Recycling Unit collects Gravmag System, recycling 9 matter... 07905_ Imp. Field Recycling Unit collects Prototype Device, recycling 57 matter... LOCATION=UNKNOWN GOAL=ESCAPE 07916_ Dropped Coil Gun. 07917_ EXIT=FOUND Data Miner: I'm the Data Miner, and I've been given permission to aid you with a little knowledge. Find what you need on the terminals, then be on your way because masking your presence is increasingly difficult. 07974_ System corrupted: Substantial component data lost. 07980_ Sneak attack on Data Miner. 07980_ Data Miner disappears through a trap door. 07989_ Data Conduit disabled. 08010_ Arm. Huge Wheel destroyed. 08010_ Cld. Deuterium Engine destroyed. 08019_ Arm. Huge Wheel destroyed. Map ----- +----------------------------------------------------+ | | | | | | | | | | | | | | | | | | | | | | | | | | | | | | | | | | | ?????????????????????????????????????????? | | ?????????????????????????????????????????? | | ?????????????????????????????????????????? | | ?????????????????????????????????????????? | | ?????????????????????????????####????????? | | ##############???#########?### #????????? | | """"""""" "##### # # # ### #????????? | | """"" """ """"# # # #g#; < ##????????? | | """"" g @ g ######???? | | "" g #???? | | "" [ #???? | | " #???? | | "" ##???? | | "" """"""""""""""""#####????? | | """ """"###############????????? | | """ """""###??????????????????????? | | """"" "#####????????????????????????? | | ####"## "#????????????????????????????? | | ???#"### "#????????????????????????????? | | ???#"#?# "#????????????????????????????? | | ???#"?? "#????????????????????????????? | | ??????# "#????????????????????????????? | | ?????? "#????????????????????????????? | | ?????### "?????????????????????????????? | | ???????# "?????????????????????????????? | | ???????# "?????????????????????????????? | | ???????? ??????????????????????????????? | | ?????????????????????????????????????????? | | ?????????????????????????????????????????? | | ?????????????????????????????????????????? | | ?????????????????????????????????????????? | | ?????????????????????????????????????????? | | ?????????????????????????????????????????? | +----------------------------------------------------+ Best States ------------- Heat Dissipation 48 Energy Generation 18 Energy Capacity 310 Matter Stores 300 Matter Capacity 300 Sight Range 22 Terrain Scan Range 20 Terrain Scan Density 210 ECM Strength 2 Armor Coverage 225 Propulsion Shielding 66 Phase Shifting 10 Evasion (%) 70 Melee Accuracy 6 Recoil Reduction 2 Salvage Targeting 2 Offensive Hacking 20 Defensive Hacking 10 Item Schematics ----------------- EM Pulse Cannon | -8/Materials | Scanalyzed Mni. Grenade Launcher | -8/Materials | Scanalyzed Lrg. Storage Unit | -8/Materials | Scanalyzed Hcp. Storage Unit | -8/Materials | Scanalyzed Imp. ECM Suite | -8/Materials | Scanalyzed Imp. Terrain Scan Processor | -8/Materials | Scanalyzed Hacking Suite | -8/Materials | Hacked System Shield | -8/Materials | Scanalyzed Hvy. Particle Cannon | -8/Materials | Scanalyzed Shock Rifle | -8/Materials | Scanalyzed Autogun | -8/Materials | Scanalyzed Imp. Ion Engine | -8/Materials | Scanalyzed Hcp. Battery | -8/Materials | Scanalyzed Power Sword | -7/Factory | Hacked Adv. Terrain Scanner | -7/Factory | Hacked Cld. VTOL Module | -7/Factory | Scanalyzed Vibroblade | -7/Factory | Scanalyzed Nuclear Pulse Array | -7/Factory | Scanalyzed Coil Gun | -7/Factory | Scanalyzed Adv. Terrain Scan Processor | -7/Factory | Hacked Imp. Light Armor Plating | -7/Factory | Hacked Lgt. Deuterium Engine | -7/Factory | Hacked Cld. Deuterium Engine | -7/Factory | Scanalyzed Coolant Injector | -7/Factory | Scanalyzed Com. Battery | -7/Factory | Scanalyzed Hvy. Rocket Launcher | -7/Factory | Scanalyzed Robot Schematics ------------------ None Fabricated ------------ Power Sword | x2 | -7/Factory Coil Gun | x2 | -7/Factory | Preloaded Adv. Terrain Scanner | x2 | -7/Factory Power Sword | x2 | -7/Factory Vibroblade | x1 | -7/Factory Alien Tech Used ----------------- None Achievements -------------- None Challenges ------------ None Game ------ Seed TachyonPointMegatreads Manual? 0 Play Time 02:39:20 Cumulative 144.5 hours Start 2021.01.20 @ 18:49:21 End 2021.01.20 @ 21:36:45 Sessions 1 Manual Loads 0 Difficulty Rogue Special Mode None Game No. 92 Rogue 92 Adventurer 0 Explorer 0 Win Type - Total 3 Types 3/0/0/0/0/0/0/0/0 Lore% 34 Gallery% 57 Achievement% 44 Wizard Run 0 Options --------- ASCII 0 Keyboard 0 Movement Mouse Keybinds 0 Fullscreen 2 Font 18/TerminusBold Map View 76x50 Tactical HUD 1 Map Filters NONE Filters NONE Steam 1 RUN: faa6c744-3100-4aba-baf9-222679aad646